[Event "*** Titled Tuesday 3|2 Blitz (Late)"]
[Site "Chess.com"]
[Date "2016.11.01"]
[Round "9"]
[White "Scott-fox21"]
[Black "Jahonas"]
[Result "0-1"]
[WhiteElo "2162"]
[BlackElo "2156"]
[TimeControl "180+2"]
[EndTime "19:00:32 PDT"]
[Termination "Jahonas won by checkmate"]

1. d4 {[%clk 0:03:02]} 1... e6 {[%clk 0:03:00.3]} 2. c4 {[%clk 0:03:02.3]} 2...
Nf6 {[%clk 0:03:01]} 3. Nc3 {[%clk 0:03:02.8]} 3... d5 {[%clk 0:03:01.6]} 4. Bg5
{[%clk 0:03:03.2]} 4... Be7 {[%clk 0:03:02.2]} 5. e3 {[%clk 0:03:04.4]} 5... h6
{[%clk 0:02:48.7]} 6. Bh4 {[%clk 0:03:03.1]} 6... c6 {[%clk 0:02:50]} 7. Bd3
{[%clk 0:03:00.5]} 7... Ne4 {[%clk 0:02:41.9]} 8. Bxe7 {[%clk 0:02:58]} 8...
Nxc3 {[%clk 0:02:40.9]} 9. bxc3 {[%clk 0:02:58.7]} 9... Qxe7 {[%clk 0:02:41.4]}
10. Ne2 {[%clk 0:02:47.2]} 10... O-O {[%clk 0:02:24.9]} 11. O-O {[%clk
0:02:47.5]} 11... b6 {[%clk 0:02:07.8]} 12. cxd5 {[%clk 0:02:45.2]} 12... exd5
{[%clk 0:02:05.6]} 13. Ng3 {[%clk 0:02:42.8]} 13... Be6 {[%clk 0:02:05.4]} 14.
f4 {[%clk 0:02:37.8]} 14... f5 {[%clk 0:02:01.3]} 15. Qc2 {[%clk 0:02:32.5]}
15... Qf7 {[%clk 0:02:01.2]} 16. Rac1 {[%clk 0:02:29.4]} 16... b5 {[%clk
0:02:00.5]} 17. a4 {[%clk 0:02:29]} 17... a6 {[%clk 0:02:01.4]} 18. Qa2 {[%clk
0:02:25.2]} 18... Nd7 {[%clk 0:02:02.1]} 19. a5 {[%clk 0:02:22.6]} 19... g6
{[%clk 0:02:01]} 20. Qa3 {[%clk 0:02:22.4]} 20... Nf6 {[%clk 0:02:01.4]} 21. Qd6
{[%clk 0:02:20.6]} 21... Qd7 {[%clk 0:02:01.1]} 22. Qxd7 {[%clk 0:02:12.7]}
22... Bxd7 {[%clk 0:01:59.4]} 23. Ne2 {[%clk 0:02:14.1]} 23... Ne4 {[%clk
0:01:51.8]} 24. Bxe4 {[%clk 0:02:12.6]} 24... dxe4 {[%clk 0:01:44.5]} 25. c4
{[%clk 0:02:09.5]} 25... Be6 {[%clk 0:01:43.5]} 26. cxb5 {[%clk 0:02:08.2]}
26... cxb5 {[%clk 0:01:44.7]} 27. Rc6 {[%clk 0:02:05.6]} 27... Kf7 {[%clk
0:01:42.3]} 28. Rfc1 {[%clk 0:02:02]} 28... Bc4 {[%clk 0:01:43]} 29. Rc7+ {[%clk
0:01:58.5]} 29... Kf6 {[%clk 0:01:44]} 30. Rc6+ {[%clk 0:01:53.9]} 30... Kg7
{[%clk 0:01:44.8]} 31. Ng3 {[%clk 0:01:52]} 31... Rfc8 {[%clk 0:01:44.5]} 32.
Rb6 {[%clk 0:01:40.1]} 32... Bd3 {[%clk 0:01:39.5]} 33. Rcc6 {[%clk 0:01:37.2]}
33... Rxc6 {[%clk 0:01:39.8]} 34. Rxc6 {[%clk 0:01:39.1]} 34... b4 {[%clk
0:01:40.7]} 35. Rb6 {[%clk 0:01:39.3]} 35... Bb5 {[%clk 0:01:40.2]} 36. d5
{[%clk 0:01:39.1]} 36... b3 {[%clk 0:01:38.1]} 37. Nf1 {[%clk 0:01:32.7]} 37...
Rc8 {[%clk 0:01:33.9]} 38. Nd2 {[%clk 0:01:28.3]} 38... Rc1+ {[%clk 0:01:34.7]}
39. Kf2 {[%clk 0:01:28.6]} 39... b2 {[%clk 0:01:34.1]} 40. Kg3 {[%clk
0:01:19.7]} 40... Rd1 {[%clk 0:01:30.2]} 41. Rb7+ {[%clk 0:00:57.3]} 41... Kf8
{[%clk 0:01:29.8]} 42. Rb8+ {[%clk 0:00:53]} 42... Ke7 {[%clk 0:01:29.7]} 43.
d6+ {[%clk 0:00:52.3]} 43... Kd7 {[%clk 0:01:26.1]} 44. Rb7+ {[%clk 0:00:48.2]}
44... Kxd6 {[%clk 0:01:27.3]} 45. Nc4+ {[%clk 0:00:43.5]} 45... Bxc4 {[%clk
0:01:23.2]} 46. Rxb2 {[%clk 0:00:45.4]} 46... Bb5 {[%clk 0:01:23.4]} 47. Rc2
{[%clk 0:00:45.6]} 47... Rd3 {[%clk 0:01:22.3]} 48. Kf2 {[%clk 0:00:46.4]} 48...
Ra3 {[%clk 0:01:23.2]} 49. Rc8 {[%clk 0:00:47.1]} 49... Rxa5 {[%clk 0:01:24.2]}
50. Rg8 {[%clk 0:00:47.6]} 50... Ra2+ {[%clk 0:01:22.8]} 51. Kg3 {[%clk
0:00:48.4]} 51... Bf1 {[%clk 0:01:22.7]} 52. Rxg6+ {[%clk 0:00:48.5]} 52... Kd5
{[%clk 0:01:23.1]} 53. Kh3 {[%clk 0:00:39.2]} 53... Rxg2 {[%clk 0:01:19.5]} 54.
Rxg2 {[%clk 0:00:04.7]} 54... Bxg2+ {[%clk 0:01:20.3]} 55. Kh4 {[%clk
0:00:05.7]} 55... a5 {[%clk 0:01:21.3]} 56. Kh5 {[%clk 0:00:07]} 56... a4 {[%clk
0:01:22.2]} 57. h4 {[%clk 0:00:04]} 57... a3 {[%clk 0:01:22.6]} 58. Kg6 {[%clk
0:00:05]} 58... Bf3 {[%clk 0:01:22.7]} 59. h5 {[%clk 0:00:05.5]} 59... Bxh5+
{[%clk 0:01:23.1]} 60. Kh7 {[%clk 0:00:04.1]} 60... Ke6 {[%clk 0:01:23.8]} 61.
Kh8 {[%clk 0:00:03.1]} 61... Bg6 {[%clk 0:01:24.4]} 62. Kg8 {[%clk 0:00:03.2]}
62... Ke7 {[%clk 0:01:25.1]} 63. Kh8 {[%clk 0:00:03.1]} 63... a2 {[%clk
0:01:26.4]} 64. Kg8 {[%clk 0:00:04.2]} 64... h5 {[%clk 0:01:27.3]} 65. Kg7
{[%clk 0:00:03.2]} 65... a1=Q+ {[%clk 0:01:26.7]} 66. Kg8 {[%clk 0:00:05.1]}
66... Qa8+ {[%clk 0:01:24.6]} 67. Kg7 {[%clk 0:00:06.4]} 67... Qf8+ {[%clk
0:01:24.8]} 68. Kxg6 {[%clk 0:00:07.6]} 68... Qf6+ {[%clk 0:01:25.2]} 69. Kxh5
{[%clk 0:00:08.8]} 69... Qg7 {[%clk 0:01:23.3]} 70. Kh4 {[%clk 0:00:09.8]} 70...
Qg4# {[%clk 0:01:24.1]} 0-1

[Event "*** Titled Tuesday 3|2 Blitz (Late)"]
[Site "Chess.com"]
[Date "2016.11.01"]
[Round "9"]
[White "popov_m"]
[Black "Fandorine"]
[Result "0-1"]
[WhiteElo "2312"]
[BlackElo "2639"]
[TimeControl "180+2"]
[EndTime "19:01:25 PDT"]
[Termination "Fandorine won by resignation"]

1. c4 {[%clk 0:03:01.4]} 1... e5 {[%clk 0:02:57]} 2. g3 {[%clk 0:03:01.6]} 2...
c6 {[%clk 0:02:56.5]} 3. Bg2 {[%clk 0:02:54.8]} 3... Nf6 {[%clk 0:02:50.8]} 4.
d4 {[%clk 0:02:55.7]} 4... exd4 {[%clk 0:02:51.3]} 5. Qxd4 {[%clk 0:02:57.6]}
5... d5 {[%clk 0:02:50.8]} 6. Nf3 {[%clk 0:02:58.6]} 6... Be6 {[%clk 0:02:49.7]}
7. O-O {[%clk 0:02:57.6]} 7... dxc4 {[%clk 0:02:48.5]} 8. Qxd8+ {[%clk
0:02:57.9]} 8... Kxd8 {[%clk 0:02:50.4]} 9. Ng5 {[%clk 0:02:59.3]} 9... Nbd7
{[%clk 0:02:48.6]} 10. Nxe6+ {[%clk 0:02:59.3]} 10... fxe6 {[%clk 0:02:49.2]}
11. Nd2 {[%clk 0:02:59.4]} 11... Nb6 {[%clk 0:02:50.5]} 12. a4 {[%clk
0:02:52.3]} 12... a5 {[%clk 0:02:51.7]} 13. Nf3 {[%clk 0:02:53.3]} 13... Bc5
{[%clk 0:02:51.1]} 14. Bg5 {[%clk 0:01:46.8]} 14... Ke7 {[%clk 0:02:40.6]} 15.
Rfc1 {[%clk 0:01:38.4]} 15... Rhd8 {[%clk 0:02:27.8]} 16. Ne5 {[%clk 0:01:31.2]}
16... h6 {[%clk 0:02:17.3]} 17. Bxf6+ {[%clk 0:01:22.7]} 17... gxf6 {[%clk
0:02:19.2]} 18. Nxc4 {[%clk 0:01:24.2]} 18... Rd4 {[%clk 0:02:04]} 19. b3 {[%clk
0:00:56]} 19... Nxc4 {[%clk 0:01:59.1]} 20. bxc4 {[%clk 0:00:56.5]} 20... Rad8
{[%clk 0:01:59.9]} 21. Rab1 {[%clk 0:00:54.8]} 21... Bb4 {[%clk 0:01:50.5]} 22.
Bf3 {[%clk 0:00:35.7]} 22... Rd2 {[%clk 0:01:49.4]} 23. Ra1 {[%clk 0:00:26.6]}
23... f5 {[%clk 0:01:49]} 24. Kg2 {[%clk 0:00:26.8]} 24... R8d4 {[%clk
0:01:41.4]} 25. Bh5 {[%clk 0:00:26.6]} 25... Kf6 {[%clk 0:01:36.4]} 26. Bf3
{[%clk 0:00:26.6]} 26... e5 {[%clk 0:01:36.2]} 27. h4 {[%clk 0:00:24.4]} 27...
e4 {[%clk 0:01:33.4]} 28. Bh5 {[%clk 0:00:25.5]} 28... Rd7 {[%clk 0:01:33.4]}
29. Rcb1 {[%clk 0:00:21]} 29... Rg7 {[%clk 0:01:18.6]} 30. Rc1 {[%clk
0:00:18.5]} 30... f4 {[%clk 0:01:15.8]} 31. Rd1 {[%clk 0:00:12.6]} 31... Rc2
{[%clk 0:00:50.3]} 32. Rd4 {[%clk 0:00:08.1]} 32... Ke5 {[%clk 0:00:27.7]} 33.
Rad1 {[%clk 0:00:08.5]} 33... Bc5 {[%clk 0:00:18.8]} 34. Rd8 {[%clk 0:00:09.1]}
34... f3+ {[%clk 0:00:10.4]} 35. exf3 {[%clk 0:00:10.6]} 35... exf3+ {[%clk
0:00:07.5]} 36. Kh3 {[%clk 0:00:09.1]} 36... Rxf2 {[%clk 0:00:05.5]} 37. Re1+
{[%clk 0:00:07]} 37... Re2 {[%clk 0:00:04.2]} 38. Rxe2+ {[%clk 0:00:07.7]} 38...
fxe2 {[%clk 0:00:06.1]} 39. Bxe2 {[%clk 0:00:09.4]} 39... Bf2 {[%clk 0:00:07.1]}
40. g4 {[%clk 0:00:09.1]} 40... Bb6 {[%clk 0:00:07.4]} 41. Re8+ {[%clk
0:00:07.1]} 41... Kd4 {[%clk 0:00:06.7]} 42. Bf3 {[%clk 0:00:07.3]} 42... Kxc4
{[%clk 0:00:03.5]} 43. g5 {[%clk 0:00:08.9]} 43... hxg5 {[%clk 0:00:04.1]} 44.
h5 {[%clk 0:00:10.1]} 44... Kb4 {[%clk 0:00:04]} 45. Kg4 {[%clk 0:00:11]} 45...
Kxa4 {[%clk 0:00:04.9]} 46. h6 {[%clk 0:00:12.5]} 46... Rh7 {[%clk 0:00:06]} 47.
Re6 {[%clk 0:00:12.8]} 47... Bc7 {[%clk 0:00:04.1]} 48. Be4 {[%clk 0:00:14.1]}
48... Rh8 {[%clk 0:00:04.9]} 49. h7 {[%clk 0:00:15.7]} 49... Bb6 {[%clk
0:00:06.1]} 50. Re7 {[%clk 0:00:09.9]} 50... Bd4 {[%clk 0:00:06.9]} 51. Rxb7
{[%clk 0:00:11.1]} 51... c5 {[%clk 0:00:08.8]} 52. Bd5 {[%clk 0:00:08.5]} 52...
Ka3 {[%clk 0:00:07.6]} 53. Kxg5 {[%clk 0:00:09.5]} 53... a4 {[%clk 0:00:07.8]}
54. Kg6 {[%clk 0:00:09.8]} 54... Rd8 {[%clk 0:00:06.7]} 55. Bc6 {[%clk
0:00:04.5]} 55... Rd6+ {[%clk 0:00:06.5]} 56. Kf5 {[%clk 0:00:03.8]} 56... Rxc6
{[%clk 0:00:07.9]} 0-1

[Event "*** Titled Tuesday 3|2 Blitz (Late)"]
[Site "Chess.com"]
[Date "2016.11.01"]
[Round "9"]
[White "Gabrielian_Artur"]
[Black "Abrito99"]
[Result "1-0"]
[WhiteElo "2568"]
[BlackElo "2365"]
[TimeControl "180+2"]
[EndTime "19:01:29 PDT"]
[Termination "Gabrielian_Artur won by resignation"]

1. e4 {[%clk 0:02:59.4]} 1... e6 {[%clk 0:03:01.1]} 2. d4 {[%clk 0:02:59.6]}
2... d5 {[%clk 0:03:02.6]} 3. Bd3 {[%clk 0:02:57.1]} 3... dxe4 {[%clk
0:03:01.1]} 4. Bxe4 {[%clk 0:02:57.9]} 4... Nf6 {[%clk 0:03:02.7]} 5. Bf3 {[%clk
0:02:57.6]} 5... Nbd7 {[%clk 0:02:46.5]} 6. Ne2 {[%clk 0:02:57.2]} 6... e5
{[%clk 0:02:45.8]} 7. Nbc3 {[%clk 0:02:56.7]} 7... Bd6 {[%clk 0:02:38.5]} 8. Bg5
{[%clk 0:02:48]} 8... O-O {[%clk 0:02:22.5]} 9. O-O {[%clk 0:02:47]} 9... h6
{[%clk 0:02:20.4]} 10. Bxf6 {[%clk 0:02:37.1]} 10... Nxf6 {[%clk 0:02:19.2]} 11.
dxe5 {[%clk 0:02:11.5]} 11... Bxe5 {[%clk 0:02:18.6]} 12. Qxd8 {[%clk
0:02:12.3]} 12... Rxd8 {[%clk 0:02:20.5]} 13. Rad1 {[%clk 0:02:13.1]} 13... Bf5
{[%clk 0:01:49.7]} 14. Bxb7 {[%clk 0:02:10.3]} 14... Rxd1 {[%clk 0:01:49.3]} 15.
Nxd1 {[%clk 0:01:40.7]} 15... Rb8 {[%clk 0:01:46.1]} 16. Ba6 {[%clk 0:01:38.9]}
16... Bxb2 {[%clk 0:01:37]} 17. Ne3 {[%clk 0:01:39.6]} 17... Be6 {[%clk
0:01:30.8]} 18. Bc4 {[%clk 0:01:40.3]} 18... Bxc4 {[%clk 0:01:00.6]} 19. Nxc4
{[%clk 0:01:40.8]} 19... Rb4 {[%clk 0:01:02.1]} 20. Rb1 {[%clk 0:01:16]} 20...
Rxc4 {[%clk 0:01:02.1]} 21. Rxb2 {[%clk 0:01:16.9]} 21... Nd5 {[%clk 0:01:00.6]}
22. Kf1 {[%clk 0:01:11.8]} 22... Nb4 {[%clk 0:00:40.4]} 23. c3 {[%clk 0:01:12]}
23... Nd5 {[%clk 0:00:40.9]} 24. Ke1 {[%clk 0:01:07.6]} 24... Kf8 {[%clk
0:00:27.1]} 25. Kd2 {[%clk 0:01:07.5]} 25... Ke7 {[%clk 0:00:28.4]} 26. Rb5
{[%clk 0:01:02]} 26... Nb6 {[%clk 0:00:17]} 27. Re5+ {[%clk 0:00:32.2]} 27...
Kd7 {[%clk 0:00:16.2]} 28. Nc1 {[%clk 0:00:29.7]} 28... Rg4 {[%clk 0:00:14.5]}
29. Rf5 {[%clk 0:00:20.8]} 29... Ke6 {[%clk 0:00:13.6]} 30. Rf3 {[%clk
0:00:21.8]} 30... Rxg2 {[%clk 0:00:14.2]} 31. h3 {[%clk 0:00:23.3]} 31... Nc4+
{[%clk 0:00:13.9]} 32. Ke2 {[%clk 0:00:22.6]} 32... Rg1 {[%clk 0:00:12.7]} 33.
Nb3 {[%clk 0:00:20.7]} 33... Rb1 {[%clk 0:00:12.7]} 34. Nd4+ {[%clk 0:00:21.6]}
34... Ke7 {[%clk 0:00:11.7]} 35. Nf5+ {[%clk 0:00:22.7]} 35... Kf8 {[%clk
0:00:12.8]} 36. Rd3 {[%clk 0:00:22.5]} 36... Rb2+ {[%clk 0:00:09.2]} 37. Ke1
{[%clk 0:00:23.2]} 37... f6 {[%clk 0:00:09.4]} 38. Rd7 {[%clk 0:00:20.1]} 38...
Rxa2 {[%clk 0:00:04.9]} 39. Nxg7 {[%clk 0:00:21.2]} 39... Ne5 {[%clk 0:00:06]}
40. Rxc7 {[%clk 0:00:21.2]} 40... Nd3+ {[%clk 0:00:05.6]} 41. Kf1 {[%clk
0:00:22.1]} 41... Rxf2+ {[%clk 0:00:06.1]} 42. Kg1 {[%clk 0:00:23.5]} 42... Ra2
{[%clk 0:00:07.7]} 43. Ne6+ {[%clk 0:00:24.2]} 43... Ke8 {[%clk 0:00:08.9]} 44.
c4 {[%clk 0:00:24.8]} 44... a5 {[%clk 0:00:09.9]} 45. c5 {[%clk 0:00:25.7]}
45... a4 {[%clk 0:00:10.7]} 46. c6 {[%clk 0:00:27.1]} 46... Rc2 {[%clk
0:00:11.8]} 47. Nd4 {[%clk 0:00:25.2]} 47... Rc4 {[%clk 0:00:12.2]} 48. Nb5
{[%clk 0:00:25.2]} 48... Ne5 {[%clk 0:00:10.8]} 49. Rc8+ {[%clk 0:00:19.9]}
49... Ke7 {[%clk 0:00:11.8]} 50. c7 {[%clk 0:00:21.4]} 50... Nf7 {[%clk
0:00:04.8]} 51. Ra8 {[%clk 0:00:20.4]} 51... Kd7 {[%clk 0:00:04.4]} 52. Ra7
{[%clk 0:00:21.1]} 52... Kc8 {[%clk 0:00:04]} 53. Ra8+ {[%clk 0:00:21.5]} 53...
Kd7 {[%clk 0:00:04.9]} 54. Rf8 {[%clk 0:00:20.7]} 54... Ke7 {[%clk 0:00:02.8]}
55. c8=Q {[%clk 0:00:21]} 55... Rxc8 {[%clk 0:00:04.1]} 56. Rxc8 {[%clk
0:00:22.3]} 56... Ne5 {[%clk 0:00:06]} 57. Ra8 {[%clk 0:00:23.1]} 1-0

[Event "*** Titled Tuesday 3|2 Blitz (Late)"]
[Site "Chess.com"]
[Date "2016.11.01"]
[Round "9"]
[White "Kubas1010"]
[Black "psv98"]
[Result "1-0"]
[WhiteElo "2439"]
[BlackElo "2597"]
[TimeControl "180+2"]
[EndTime "19:01:57 PDT"]
[Termination "Kubas1010 won by checkmate"]

1. e4 {[%clk 0:03:01.9]} 1... a6 {[%clk 0:03:00.6]} 2. d4 {[%clk 0:03:01.8]}
2... b5 {[%clk 0:03:02]} 3. Bd3 {[%clk 0:03:02.4]} 3... Bb7 {[%clk 0:03:03.3]}
4. Nf3 {[%clk 0:03:03.2]} 4... e6 {[%clk 0:03:04.8]} 5. O-O {[%clk 0:03:04.1]}
5... Nf6 {[%clk 0:03:06.2]} 6. Re1 {[%clk 0:03:00.8]} 6... Be7 {[%clk 0:03:06]}
7. c3 {[%clk 0:02:59.6]} 7... d5 {[%clk 0:03:05.7]} 8. e5 {[%clk 0:02:59.4]}
8... Nfd7 {[%clk 0:03:07.1]} 9. a4 {[%clk 0:02:59.8]} 9... c5 {[%clk 0:03:06.6]}
10. dxc5 {[%clk 0:02:49.4]} 10... Nxc5 {[%clk 0:03:06.7]} 11. axb5 {[%clk
0:02:50.9]} 11... Nxd3 {[%clk 0:03:06.5]} 12. Qxd3 {[%clk 0:02:51.3]} 12... O-O
{[%clk 0:03:03.9]} 13. Be3 {[%clk 0:02:51.3]} 13... axb5 {[%clk 0:02:47.1]} 14.
Rxa8 {[%clk 0:02:51.5]} 14... Bxa8 {[%clk 0:02:49]} 15. Qxb5 {[%clk 0:02:52.6]}
15... Nc6 {[%clk 0:02:48]} 16. Nbd2 {[%clk 0:02:51.7]} 16... Qc7 {[%clk
0:02:49.1]} 17. Qb6 {[%clk 0:02:14.9]} 17... Qd7 {[%clk 0:02:44.9]} 18. b4
{[%clk 0:02:10.9]} 18... Rb8 {[%clk 0:02:17.6]} 19. Qa6 {[%clk 0:02:11.2]} 19...
d4 {[%clk 0:02:13.2]} 20. Nxd4 {[%clk 0:02:08]} 20... Nxd4 {[%clk 0:02:12.3]}
21. Bxd4 {[%clk 0:02:08.6]} 21... Bxb4 {[%clk 0:02:11.9]} 22. Rb1 {[%clk
0:01:42.3]} 22... Qd5 {[%clk 0:02:08.9]} 23. Qf1 {[%clk 0:01:42]} 23... Rb7
{[%clk 0:01:18.1]} 24. Nc4 {[%clk 0:01:39.2]} 24... Bc5 {[%clk 0:01:08]} 25.
Rxb7 {[%clk 0:01:37.1]} 25... Bxb7 {[%clk 0:01:06]} 26. Ne3 {[%clk 0:01:37.1]}
26... Qc6 {[%clk 0:01:03.1]} 27. Qc4 {[%clk 0:01:32.9]} 27... Bxd4 {[%clk
0:00:51.6]} 28. Qxc6 {[%clk 0:01:28.3]} 28... Bxc6 {[%clk 0:00:53.5]} 29. cxd4
{[%clk 0:01:30.1]} 29... f6 {[%clk 0:00:52.4]} 30. f4 {[%clk 0:01:19.9]} 30...
Kf7 {[%clk 0:00:51.1]} 31. Kf2 {[%clk 0:01:20.7]} 31... h6 {[%clk 0:00:51.2]}
32. g4 {[%clk 0:01:18.7]} 32... g5 {[%clk 0:00:51.8]} 33. Kg3 {[%clk 0:01:18.2]}
33... Be4 {[%clk 0:00:43.5]} 34. Nc4 {[%clk 0:01:18.3]} 34... Bd5 {[%clk
0:00:41]} 35. Nd6+ {[%clk 0:01:15.3]} 35... Ke7 {[%clk 0:00:42.1]} 36. h4 {[%clk
0:01:16.1]} 36... Bc6 {[%clk 0:00:35.7]} 37. fxg5 {[%clk 0:01:01.7]} 37... fxg5
{[%clk 0:00:32.2]} 38. Nc4 {[%clk 0:00:55.9]} 38... Be4 {[%clk 0:00:19.7]} 39.
Nd2 {[%clk 0:00:56.3]} 39... Bd5 {[%clk 0:00:17.8]} 40. hxg5 {[%clk 0:00:52.7]}
40... hxg5 {[%clk 0:00:18.1]} 41. Nf3 {[%clk 0:00:54]} 41... Kf7 {[%clk
0:00:02.3]} 42. Nxg5+ {[%clk 0:00:54.9]} 42... Kg6 {[%clk 0:00:04.2]} 43. Kf4
{[%clk 0:00:55.6]} 43... Bc4 {[%clk 0:00:04.8]} 44. Nf3 {[%clk 0:00:53.7]} 44...
Bd5 {[%clk 0:00:06.7]} 45. Nh4+ {[%clk 0:00:54.6]} 45... Kh6 {[%clk 0:00:08.3]}
46. Nf3 {[%clk 0:00:53.7]} 46... Kg6 {[%clk 0:00:09]} 47. Nd2 {[%clk 0:00:54.7]}
47... Kh6 {[%clk 0:00:09.8]} 48. Nf1 {[%clk 0:00:55.5]} 48... Kg6 {[%clk
0:00:11.1]} 49. Ne3 {[%clk 0:00:55.8]} 49... Bb3 {[%clk 0:00:12.6]} 50. Nf1
{[%clk 0:00:51.7]} 50... Bc4 {[%clk 0:00:12.8]} 51. Nd2 {[%clk 0:00:51.9]} 51...
Bd5 {[%clk 0:00:14.2]} 52. Kg3 {[%clk 0:00:52.3]} 52... Kg5 {[%clk 0:00:14.2]}
53. Nf3+ {[%clk 0:00:53.3]} 53... Kg6 {[%clk 0:00:15.1]} 54. Kf4 {[%clk
0:00:41.6]} 54... Bc4 {[%clk 0:00:14.1]} 55. Ng5 {[%clk 0:00:38.9]} 55... Bd5
{[%clk 0:00:14.5]} 56. Ne4 {[%clk 0:00:40.2]} 56... Bc4 {[%clk 0:00:15.8]} 57.
Nf6 {[%clk 0:00:41.6]} 57... Bb3 {[%clk 0:00:15.3]} 58. Ke3 {[%clk 0:00:42.9]}
58... Kg5 {[%clk 0:00:15.2]} 59. Kd3 {[%clk 0:00:43.6]} 59... Bd1 {[%clk
0:00:08.7]} 60. Kc4 {[%clk 0:00:43.3]} 60... Kf4 {[%clk 0:00:06.3]} 61. Kc5
{[%clk 0:00:42.3]} 61... Bb3 {[%clk 0:00:04.6]} 62. Kd6 {[%clk 0:00:41.3]} 62...
Kg5 {[%clk 0:00:05.9]} 63. Ne4+ {[%clk 0:00:35.6]} 63... Kxg4 {[%clk 0:00:07.2]}
64. Nc5 {[%clk 0:00:37]} 64... Ba2 {[%clk 0:00:04.5]} 65. Nxe6 {[%clk
0:00:37.7]} 65... Kf5 {[%clk 0:00:06.4]} 66. Nc5 {[%clk 0:00:38]} 66... Kf4
{[%clk 0:00:04.3]} 67. e6 {[%clk 0:00:37.6]} 67... Ke3 {[%clk 0:00:05.6]} 68. d5
{[%clk 0:00:37.3]} 68... Kd4 {[%clk 0:00:07]} 69. e7 {[%clk 0:00:38.2]} 69...
Bxd5 {[%clk 0:00:08.6]} 70. e8=Q {[%clk 0:00:38.7]} 70... Be4 {[%clk 0:00:08.8]}
71. Qxe4+ {[%clk 0:00:36.6]} 71... Kc3 {[%clk 0:00:10.7]} 72. Qd3+ {[%clk
0:00:37.6]} 72... Kb2 {[%clk 0:00:12.6]} 73. Qb3+ {[%clk 0:00:36.9]} 73... Kc1
{[%clk 0:00:14.5]} 74. Qa2 {[%clk 0:00:37.2]} 74... Kd1 {[%clk 0:00:16.4]} 75.
Ne4 {[%clk 0:00:36.9]} 75... Kc1 {[%clk 0:00:18.3]} 76. Kd5 {[%clk 0:00:36.2]}
76... Kd1 {[%clk 0:00:19.1]} 77. Qd2# {[%clk 0:00:36.7]} 1-0